[Event "Titled Tuesday Blitz November 29 Late 2022"]
[White "Buchenau, Frank"]
[Black "Toniutti, Ezio"]
[WhiteFideId "4604350"]
[BlackFideId "113034"]
[WhiteElo "2157"]
[BlackElo "2215"]
[Result "1-0"]
[Round "10"]
[TimeControl "180+1"]
[Date "2022.11.30"]
[WhiteClock "0:00:25"]
[BlackClock "0:00:13"]

1. e4 {[%clk 0:03:00]}  e5 {[%clk 0:02:58]} 2. Bc4 {[%clk 0:03:00]}  Nf6 {[%clk 0:02:57]} 3. d3 {[%clk 0:03:00]}  Nc6 {[%clk 0:02:56]} 4. Nf3 {[%clk 0:03:00]}  Be7 {[%clk 0:02:55]} 5. O-O {[%clk 0:03:01]}  O-O {[%clk 0:02:55]} 6. Re1 {[%clk 0:03:01]}  d6 {[%clk 0:02:55]} 7. a4 {[%clk 0:03:01]}  Be6 {[%clk 0:02:54]} 8. Nbd2 {[%clk 0:03:01]}  Qd7 {[%clk 0:02:53]} 9. a5 {[%clk 0:03:01]}  a6 {[%clk 0:02:53]} 10. c3 {[%clk 0:03:00]}  h6 {[%clk 0:02:49]} 11. Qb3 {[%clk 0:03:00]}  Rab8 {[%clk 0:02:48]} 12. Bxe6 {[%clk 0:02:59]}  Qxe6 {[%clk 0:02:45]} 13. Qxe6 {[%clk 0:02:58]}  fxe6 {[%clk 0:02:46]} 14. Nc4 {[%clk 0:02:53]}  Nd7 {[%clk 0:02:41]} 15. Be3 {[%clk 0:02:51]}  Nf6 {[%clk 0:02:30]} 16. b4 {[%clk 0:02:48]}  Nh5 {[%clk 0:02:14]} 17. Reb1 {[%clk 0:02:42]}  Nf4 {[%clk 0:02:05]} 18. Bxf4 {[%clk 0:02:40]}  exf4 {[%clk 0:02:05]} 19. b5 {[%clk 0:02:35]}  Na7 {[%clk 0:02:01]} 20. b6 {[%clk 0:02:24]}  cxb6 {[%clk 0:01:54]} 21. Nxb6 {[%clk 0:02:20]}  Bf6 {[%clk 0:01:38]} 22. Nd7 {[%clk 0:02:15]}  Bxc3 {[%clk 0:01:30]} 23. Ra3 {[%clk 0:02:15]}  Rbc8 {[%clk 0:01:24]} 24. Nxf8 {[%clk 0:02:14]}  Kxf8 {[%clk 0:01:20]} 25. Rxb7 {[%clk 0:02:08]}  Nb5 {[%clk 0:01:20]} 26. Rb3 {[%clk 0:01:51]}  Bxa5 {[%clk 0:01:16]} 27. g3 {[%clk 0:01:40]}  fxg3 {[%clk 0:01:09]} 28. hxg3 {[%clk 0:01:40]}  Bc3 {[%clk 0:01:09]} 29. Kg2 {[%clk 0:01:36]}  Rc6 {[%clk 0:01:04]} 30. Nh4 {[%clk 0:01:29]}  Bf6 {[%clk 0:00:54]} 31. Ng6+ {[%clk 0:01:28]}  Ke8 {[%clk 0:00:51]} 32. Nf4 {[%clk 0:01:16]}  d5 {[%clk 0:00:26]} 33. exd5 {[%clk 0:01:16]}  exd5 {[%clk 0:00:27]} 34. Nxd5 {[%clk 0:01:16]}  Bd4 {[%clk 0:00:26]} 35. Ne3 {[%clk 0:00:45]}  Re6 {[%clk 0:00:23]} 36. Nf5 {[%clk 0:00:43]}  Re2 {[%clk 0:00:17]} 37. Nxd4 {[%clk 0:00:39]}  Nxd4 {[%clk 0:00:17]} 38. R3b4 {[%clk 0:00:37]}  Nf5 {[%clk 0:00:15]} 39. Re4+ {[%clk 0:00:37]}  Rxe4 {[%clk 0:00:14]} 40. dxe4 {[%clk 0:00:38]}  Nd6 {[%clk 0:00:15]} 41. Rxg7 {[%clk 0:00:35]}  Nxe4 {[%clk 0:00:15]} 42. Rg6 {[%clk 0:00:35]}  a5 {[%clk 0:00:13]} 43. Ra6 {[%clk 0:00:33]}  a4 {[%clk 0:00:14]} 44. Rxa4 {[%clk 0:00:33]}  Nf6 {[%clk 0:00:14]} 45. Ra7 {[%clk 0:00:33]}  Kf8 {[%clk 0:00:14]} 46. Kf3 {[%clk 0:00:32]}  Kg8 {[%clk 0:00:14]} 47. Kf4 {[%clk 0:00:32]}  Nd5+ {[%clk 0:00:15]} 48. Ke5 {[%clk 0:00:31]}  Nc3 {[%clk 0:00:14]} 49. f4 {[%clk 0:00:28]}  Ne2 {[%clk 0:00:13]} 50. g4 {[%clk 0:00:28]}  Ng3 {[%clk 0:00:14]} 51. Kf6 {[%clk 0:00:26]}  h5 {[%clk 0:00:13]} 52. Kg6 {[%clk 0:00:25]} 1-0


[Site "https://www.chess.com"]

[Event "Titled Tuesday Blitz November 29 Late 2022"]
[White "Clawitter, Craig"]
[Black "Shapiro, Daniel"]
[WhiteFideId "2023105"]
[BlackFideId "2001780"]
[WhiteElo "2262"]
[BlackElo "2327"]
[Result "1-0"]
[Round "10"]
[TimeControl "180+1"]
[Date "2022.11.30"]
[WhiteClock "0:00:15"]
[BlackClock "0:00:35"]

1. e4 {[%clk 0:03:00]}  e5 {[%clk 0:03:00]} 2. Nf3 {[%clk 0:02:59]}  Nc6 {[%clk 0:03:00]} 3. Bb5 {[%clk 0:02:59]}  a6 {[%clk 0:02:59]} 4. Ba4 {[%clk 0:02:59]}  Nf6 {[%clk 0:02:59]} 5. O-O {[%clk 0:02:57]}  Be7 {[%clk 0:02:59]} 6. d3 {[%clk 0:02:56]}  b5 {[%clk 0:02:57]} 7. Bb3 {[%clk 0:02:56]}  Bb7 {[%clk 0:02:55]} 8. Nc3 {[%clk 0:02:55]}  h6 {[%clk 0:02:52]} 9. a4 {[%clk 0:02:54]}  b4 {[%clk 0:02:48]} 10. Nd5 {[%clk 0:02:54]}  Bd6 {[%clk 0:02:41]} 11. a5 {[%clk 0:02:47]}  O-O {[%clk 0:02:39]} 12. Bd2 {[%clk 0:02:41]}  Re8 {[%clk 0:02:38]} 13. Qe1 {[%clk 0:02:31]}  Rb8 {[%clk 0:02:25]} 14. Ra4 {[%clk 0:02:18]}  Nd4 {[%clk 0:01:55]} 15. Nxf6+ {[%clk 0:01:56]}  Qxf6 {[%clk 0:01:54]} 16. Nxd4 {[%clk 0:01:57]}  exd4 {[%clk 0:01:51]} 17. Bxb4 {[%clk 0:01:56]}  c5 {[%clk 0:01:38]} 18. Bd2 {[%clk 0:01:52]}  Bc6 {[%clk 0:01:34]} 19. Ra1 {[%clk 0:01:39]}  Bf4 {[%clk 0:01:29]} 20. Bxf4 {[%clk 0:01:21]}  Qxf4 {[%clk 0:01:29]} 21. Qc1 {[%clk 0:01:22]}  Qh4 {[%clk 0:01:11]} 22. g3 {[%clk 0:01:13]}  Qh3 {[%clk 0:01:09]} 23. Qf4 {[%clk 0:01:13]}  Rbd8 {[%clk 0:01:00]} 24. Bxf7+ {[%clk 0:01:05]}  Kh8 {[%clk 0:01:01]} 25. Bxe8 {[%clk 0:01:05]}  Rxe8 {[%clk 0:01:01]} 26. Qf5 {[%clk 0:00:46]}  Qxf5 {[%clk 0:00:57]} 27. exf5 {[%clk 0:00:47]}  Re2 {[%clk 0:00:57]} 28. Rac1 {[%clk 0:00:40]}  Bf3 {[%clk 0:00:50]} 29. Rfe1 {[%clk 0:00:39]}  Rd2 {[%clk 0:00:50]} 30. Re7 {[%clk 0:00:28]}  Bd1 {[%clk 0:00:45]} 31. Rxd7 {[%clk 0:00:22]}  Bxc2 {[%clk 0:00:45]} 32. Rd5 {[%clk 0:00:20]}  Bxd3 {[%clk 0:00:42]} 33. Rcxc5 {[%clk 0:00:20]}  Rd1+ {[%clk 0:00:40]} 34. Kg2 {[%clk 0:00:21]}  Be4+ {[%clk 0:00:40]} 35. f3 {[%clk 0:00:20]}  Rd2+ {[%clk 0:00:40]} 36. Kh3 {[%clk 0:00:18]}  Bxf3 {[%clk 0:00:35]} 37. Rd8+ {[%clk 0:00:17]}  Kh7 {[%clk 0:00:35]} 38. Rcc8 {[%clk 0:00:15]} 1-0


[Site "https://www.chess.com"]

[Event "Titled Tuesday Blitz November 29 Late 2022"]
[White "Corrales Jimenez, Fidel"]
[Black "Bortnyk, Olexandr"]
[WhiteFideId "3506690"]
[BlackFideId "14120828"]
[WhiteElo "2541"]
[BlackElo "2723"]
[Result "0-1"]
[Round "10"]
[TimeControl "180+1"]
[Date "2022.11.30"]
[WhiteClock "0:00:01"]
[BlackClock "0:00:08"]

1. e4 {[%clk 0:02:59]}  Nf6 {[%clk 0:02:59]} 2. e5 {[%clk 0:03:00]}  Nd5 {[%clk 0:02:59]} 3. d4 {[%clk 0:03:00]}  d6 {[%clk 0:02:59]} 4. c4 {[%clk 0:03:01]}  Nb6 {[%clk 0:03:00]} 5. exd6 {[%clk 0:03:01]}  exd6 {[%clk 0:03:01]} 6. Nc3 {[%clk 0:03:01]}  Be7 {[%clk 0:03:01]} 7. Be3 {[%clk 0:03:01]}  O-O {[%clk 0:03:01]} 8. Bd3 {[%clk 0:03:02]}  c6 {[%clk 0:02:58]} 9. b3 {[%clk 0:02:59]}  Na6 {[%clk 0:02:57]} 10. Nge2 {[%clk 0:02:59]}  d5 {[%clk 0:02:57]} 11. O-O {[%clk 0:02:42]}  Nc7 {[%clk 0:02:55]} 12. c5 {[%clk 0:02:42]}  Nd7 {[%clk 0:02:55]} 13. Qc2 {[%clk 0:02:41]}  g6 {[%clk 0:02:55]} 14. Rae1 {[%clk 0:02:41]}  Ne6 {[%clk 0:02:55]} 15. f4 {[%clk 0:02:37]}  f5 {[%clk 0:02:52]} 16. g4 {[%clk 0:02:37]}  Ng7 {[%clk 0:02:30]} 17. g5 {[%clk 0:02:28]}  h5 {[%clk 0:01:58]} 18. gxh6 {[%clk 0:02:23]}  Nh5 {[%clk 0:01:58]} 19. Kh1 {[%clk 0:02:22]}  Ndf6 {[%clk 0:01:57]} 20. Rg1 {[%clk 0:02:22]}  Kh7 {[%clk 0:01:51]} 21. Ng3 {[%clk 0:02:21]}  Nxg3+ {[%clk 0:01:31]} 22. Rxg3 {[%clk 0:02:21]}  Ne4 {[%clk 0:01:32]} 23. Nxe4 {[%clk 0:02:07]}  fxe4 {[%clk 0:01:29]} 24. Qg2 {[%clk 0:01:52]}  Bf5 {[%clk 0:01:15]} 25. Be2 {[%clk 0:01:51]}  Bh4 {[%clk 0:01:15]} 26. Rg1 {[%clk 0:01:38]}  Bxg3 {[%clk 0:01:14]} 27. hxg3 {[%clk 0:01:39]}  Kxh6 {[%clk 0:01:06]} 28. g4 {[%clk 0:01:39]}  Qh4+ {[%clk 0:01:05]} 29. Qh2 {[%clk 0:01:40]}  Qxh2+ {[%clk 0:01:06]} 30. Kxh2 {[%clk 0:01:41]}  Bd7 {[%clk 0:01:07]} 31. f5+ {[%clk 0:00:43]}  Kg7 {[%clk 0:01:07]} 32. fxg6 {[%clk 0:00:42]}  Kxg6 {[%clk 0:01:04]} 33. Kg3 {[%clk 0:00:42]}  Rh8 {[%clk 0:01:01]} 34. Bf4 {[%clk 0:00:37]}  Raf8 {[%clk 0:01:01]} 35. Be5 {[%clk 0:00:36]}  Rh7 {[%clk 0:01:00]} 36. b4 {[%clk 0:00:35]}  Rhf7 {[%clk 0:00:50]} 37. Rg2 {[%clk 0:00:28]}  b5 {[%clk 0:00:33]} 38. Rh2 {[%clk 0:00:15]}  Rh7 {[%clk 0:00:26]} 39. Rh5 {[%clk 0:00:13]}  Rxh5 {[%clk 0:00:22]} 40. gxh5+ {[%clk 0:00:14]}  Kh7 {[%clk 0:00:22]} 41. Bf4 {[%clk 0:00:09]}  Rg8+ {[%clk 0:00:20]} 42. Kf2 {[%clk 0:00:05]}  Bg4 {[%clk 0:00:20]} 43. Bf1 {[%clk 0:00:05]}  Bxh5 {[%clk 0:00:20]} 44. Ke3 {[%clk 0:00:04]}  a6 {[%clk 0:00:18]} 45. Bh3 {[%clk 0:00:04]}  Bg4 {[%clk 0:00:18]} 46. Bf1 {[%clk 0:00:04]}  Kg6 {[%clk 0:00:18]} 47. a4 {[%clk 0:00:04]}  Rh8 {[%clk 0:00:17]} 48. axb5 {[%clk 0:00:03]}  axb5 {[%clk 0:00:18]} 49. Kf2 {[%clk 0:00:03]}  Kf5 {[%clk 0:00:17]} 50. Bg3 {[%clk 0:00:03]}  Ra8 {[%clk 0:00:16]} 51. Bc7 {[%clk 0:00:03]}  Ra2+ {[%clk 0:00:15]} 52. Kg3 {[%clk 0:00:03]}  Ra3+ {[%clk 0:00:12]} 53. Kh4 {[%clk 0:00:03]}  e3 {[%clk 0:00:09]} 54. Bg2 {[%clk 0:00:01]}  e2 {[%clk 0:00:08]} 0-1


[Site "https://www.chess.com"]

[Event "Titled Tuesday Blitz November 29 Late 2022"]
[White "Fareh, Youness"]
[Black "De Souza, Cristiano Gomes"]
[WhiteFideId "9000526"]
[BlackFideId "2151758"]
[WhiteElo "1846"]
[BlackElo "2068"]
[Result "1-0"]
[Round "10"]
[TimeControl "180+1"]
[Date "2022.11.30"]
[WhiteClock "0:01:14"]
[BlackClock "0:01:41"]

1. e4 {[%clk 0:03:00]}  c5 {[%clk 0:02:58]} 2. Nf3 {[%clk 0:03:00]}  d6 {[%clk 0:02:56]} 3. g3 {[%clk 0:02:59]}  g6 {[%clk 0:02:55]} 4. Bg2 {[%clk 0:02:59]}  Bg7 {[%clk 0:02:54]} 5. O-O {[%clk 0:03:00]}  Nc6 {[%clk 0:02:52]} 6. c3 {[%clk 0:02:59]}  Nf6 {[%clk 0:02:51]} 7. d3 {[%clk 0:02:59]}  O-O {[%clk 0:02:51]} 8. h3 {[%clk 0:02:57]}  b5 {[%clk 0:02:50]} 9. Bg5 {[%clk 0:02:54]}  Rb8 {[%clk 0:02:50]} 10. Nbd2 {[%clk 0:02:50]}  b4 {[%clk 0:02:49]} 11. c4 {[%clk 0:02:48]}  Ne8 {[%clk 0:02:46]} 12. Rb1 {[%clk 0:02:46]}  Nc7 {[%clk 0:02:45]} 13. Re1 {[%clk 0:02:22]}  Ne6 {[%clk 0:02:44]} 14. Be3 {[%clk 0:02:21]}  Ncd4 {[%clk 0:02:43]} 15. Nxd4 {[%clk 0:02:20]}  Nxd4 {[%clk 0:02:43]} 16. Bxd4 {[%clk 0:02:21]}  Bxd4 {[%clk 0:02:42]} 17. Nf3 {[%clk 0:02:20]}  Bg7 {[%clk 0:02:34]} 18. e5 {[%clk 0:02:18]}  d5 {[%clk 0:02:30]} 19. b3 {[%clk 0:02:13]}  Bb7 {[%clk 0:02:25]} 20. e6 {[%clk 0:02:08]}  f5 {[%clk 0:02:19]} 21. Ne5 {[%clk 0:02:07]}  dxc4 {[%clk 0:02:13]} 22. Nd7 {[%clk 0:01:53]}  Bxg2 {[%clk 0:02:11]} 23. Kxg2 {[%clk 0:01:52]}  Rb6 {[%clk 0:02:07]} 24. dxc4 {[%clk 0:01:48]}  Rd6 {[%clk 0:02:06]} 25. Qe2 {[%clk 0:01:43]}  Qa8+ {[%clk 0:02:03]} 26. f3 {[%clk 0:01:42]}  Rd8 {[%clk 0:02:01]} 27. Rbd1 {[%clk 0:01:42]}  Qc6 {[%clk 0:01:59]} 28. h4 {[%clk 0:01:33]}  Bd4 {[%clk 0:01:54]} 29. h5 {[%clk 0:01:29]}  Kg7 {[%clk 0:01:46]} 30. Rxd4 {[%clk 0:01:17]}  cxd4 {[%clk 0:01:42]} 31. Qe5+ {[%clk 0:01:16]}  Kg8 {[%clk 0:01:41]} 32. h6 {[%clk 0:01:14]} 1-0


[Site "https://www.chess.com"]

[Event "Titled Tuesday Blitz November 29 Late 2022"]
[White "Gasparyan, David"]
[Black "Barbot, Pierre"]
[WhiteFideId "13311980"]
[BlackFideId "663727"]
[WhiteElo "2369"]
[BlackElo "2439"]
[Result "1-0"]
[Round "10"]
[TimeControl "180+1"]
[Date "2022.11.30"]
[WhiteClock "0:00:39"]
[BlackClock "0:00:04"]

1. Nf3 {[%clk 0:02:54]}  Nf6 {[%clk 0:02:59]} 2. c4 {[%clk 0:02:53]}  e6 {[%clk 0:02:59]} 3. Nc3 {[%clk 0:02:53]}  d5 {[%clk 0:02:59]} 4. cxd5 {[%clk 0:02:53]}  exd5 {[%clk 0:03:00]} 5. d4 {[%clk 0:02:54]}  Bb4 {[%clk 0:02:54]} 6. Bf4 {[%clk 0:02:53]}  O-O {[%clk 0:02:34]} 7. e3 {[%clk 0:02:53]}  Bf5 {[%clk 0:02:32]} 8. Be2 {[%clk 0:02:45]}  c6 {[%clk 0:02:27]} 9. O-O {[%clk 0:02:45]}  Nbd7 {[%clk 0:02:27]} 10. Qb3 {[%clk 0:02:44]}  Bxc3 {[%clk 0:02:26]} 11. bxc3 {[%clk 0:02:44]}  b5 {[%clk 0:02:20]} 12. a4 {[%clk 0:02:44]}  a6 {[%clk 0:02:19]} 13. h3 {[%clk 0:02:40]}  Ne4 {[%clk 0:02:07]} 14. Qb2 {[%clk 0:02:38]}  Nb6 {[%clk 0:01:55]} 15. Ne5 {[%clk 0:02:35]}  Qf6 {[%clk 0:01:52]} 16. f3 {[%clk 0:02:25]}  Nd6 {[%clk 0:01:46]} 17. g4 {[%clk 0:02:16]}  Bg6 {[%clk 0:01:34]} 18. g5 {[%clk 0:02:15]}  Qe6 {[%clk 0:01:31]} 19. axb5 {[%clk 0:02:13]}  axb5 {[%clk 0:01:03]} 20. Kh2 {[%clk 0:02:12]}  Ndc4 {[%clk 0:00:56]} 21. Bxc4 {[%clk 0:01:42]}  Nxc4 {[%clk 0:00:56]} 22. Nxc4 {[%clk 0:01:42]}  dxc4 {[%clk 0:00:37]} 23. e4 {[%clk 0:01:42]}  f6 {[%clk 0:00:36]} 24. Rxa8 {[%clk 0:01:37]}  Rxa8 {[%clk 0:00:36]} 25. gxf6 {[%clk 0:01:38]}  Qxf6 {[%clk 0:00:35]} 26. Be5 {[%clk 0:01:38]}  Qh4 {[%clk 0:00:33]} 27. Bg3 {[%clk 0:01:37]}  Qh5 {[%clk 0:00:30]} 28. Kg2 {[%clk 0:01:29]}  Bf7 {[%clk 0:00:29]} 29. Ra1 {[%clk 0:01:27]}  Rf8 {[%clk 0:00:27]} 30. Qe2 {[%clk 0:01:21]}  Be6 {[%clk 0:00:24]} 31. h4 {[%clk 0:01:21]}  Bc8 {[%clk 0:00:18]} 32. Ra7 {[%clk 0:01:07]}  Qg6 {[%clk 0:00:18]} 33. Kh2 {[%clk 0:01:04]}  Qe6 {[%clk 0:00:18]} 34. Qg2 {[%clk 0:01:03]}  g6 {[%clk 0:00:16]} 35. h5 {[%clk 0:01:02]}  Rf7 {[%clk 0:00:13]} 36. Ra8 {[%clk 0:01:02]}  Rf8 {[%clk 0:00:10]} 37. hxg6 {[%clk 0:01:01]}  hxg6 {[%clk 0:00:09]} 38. Be5 {[%clk 0:01:00]}  Kf7 {[%clk 0:00:09]} 39. Ra7+ {[%clk 0:00:58]}  Ke8 {[%clk 0:00:09]} 40. Qg3 {[%clk 0:00:55]}  Rf7 {[%clk 0:00:08]} 41. Rxf7 {[%clk 0:00:54]}  Qxf7 {[%clk 0:00:09]} 42. Qh4 {[%clk 0:00:51]}  Qxf3 {[%clk 0:00:07]} 43. Qh8+ {[%clk 0:00:50]}  Qf8 {[%clk 0:00:05]} 44. Qh4 {[%clk 0:00:49]}  Qf3 {[%clk 0:00:03]} 45. Bd6 {[%clk 0:00:45]}  Qe2+ {[%clk 0:00:03]} 46. Kg1 {[%clk 0:00:44]}  Qd1+ {[%clk 0:00:03]} 47. Kf2 {[%clk 0:00:43]}  Qd2+ {[%clk 0:00:04]} 48. Kf3 {[%clk 0:00:42]}  Qxc3+ {[%clk 0:00:03]} 49. Kf4 {[%clk 0:00:41]}  Qd2+ {[%clk 0:00:03]} 50. Ke5 {[%clk 0:00:40]}  g5 {[%clk 0:00:03]} 51. Qh8+ {[%clk 0:00:38]}  Kf7 {[%clk 0:00:04]} 52. Qh7+ {[%clk 0:00:39]}  Ke8 {[%clk 0:00:04]} 53. Qe7# {[%clk 0:00:39]} 1-0


[Site "https://www.chess.com"]

[Event "Titled Tuesday Blitz November 29 Late 2022"]
[White "Goncalves, Davi Sulzbacher"]
[Black "Hjartarson, Johann"]
[WhiteFideId "2154510"]
[BlackFideId "2300044"]
[WhiteElo "2182"]
[BlackElo "2458"]
[Result "0-1"]
[Round "10"]
[TimeControl "180+1"]
[Date "2022.11.30"]
[WhiteClock "0:00:03"]
[BlackClock "0:00:07"]

1. Nf3 {[%clk 0:03:00]}  Nf6 {[%clk 0:02:58]} 2. d4 {[%clk 0:03:01]}  g6 {[%clk 0:02:57]} 3. c4 {[%clk 0:03:01]}  Bg7 {[%clk 0:02:57]} 4. Nc3 {[%clk 0:03:02]}  O-O {[%clk 0:02:57]} 5. e4 {[%clk 0:03:02]}  d6 {[%clk 0:02:57]} 6. Be2 {[%clk 0:03:03]}  e5 {[%clk 0:02:57]} 7. O-O {[%clk 0:03:02]}  Nc6 {[%clk 0:02:57]} 8. d5 {[%clk 0:03:02]}  Ne7 {[%clk 0:02:57]} 9. b4 {[%clk 0:03:03]}  a5 {[%clk 0:02:56]} 10. Ba3 {[%clk 0:03:01]}  axb4 {[%clk 0:02:53]} 11. Bxb4 {[%clk 0:03:01]}  Re8 {[%clk 0:02:52]} 12. c5 {[%clk 0:02:54]}  dxc5 {[%clk 0:02:52]} 13. Bxc5 {[%clk 0:02:54]}  c6 {[%clk 0:02:52]} 14. d6 {[%clk 0:02:45]}  Qa5 {[%clk 0:02:51]} 15. Na4 {[%clk 0:02:28]}  Qxa4 {[%clk 0:02:46]} 16. dxe7 {[%clk 0:02:03]}  Nxe4 {[%clk 0:02:40]} 17. Bb6 {[%clk 0:01:44]}  Be6 {[%clk 0:02:28]} 18. Qxa4 {[%clk 0:01:21]}  Rxa4 {[%clk 0:02:27]} 19. Rfd1 {[%clk 0:01:22]}  Bd5 {[%clk 0:02:15]} 20. Bd8 {[%clk 0:01:10]}  Bf6 {[%clk 0:02:13]} 21. Rxd5 {[%clk 0:01:06]}  Nc3 {[%clk 0:01:40]} 22. Rd6 {[%clk 0:00:51]}  Nxe2+ {[%clk 0:01:37]} 23. Kf1 {[%clk 0:00:51]}  e4 {[%clk 0:01:30]} 24. Rxf6 {[%clk 0:00:37]}  exf3 {[%clk 0:01:30]} 25. Rxf3 {[%clk 0:00:30]}  Nd4 {[%clk 0:01:29]} 26. Rf4 {[%clk 0:00:29]}  c5 {[%clk 0:01:16]} 27. g4 {[%clk 0:00:21]}  Ra6 {[%clk 0:01:03]} 28. Rc1 {[%clk 0:00:17]}  Ne6 {[%clk 0:01:00]} 29. Rf6 {[%clk 0:00:15]}  Rxa2 {[%clk 0:00:59]} 30. Rxe6 {[%clk 0:00:13]}  fxe6 {[%clk 0:00:58]} 31. Rxc5 {[%clk 0:00:14]}  Kf7 {[%clk 0:00:52]} 32. Rb5 {[%clk 0:00:13]}  Ra7 {[%clk 0:00:48]} 33. Kg2 {[%clk 0:00:10]}  Rxe7 {[%clk 0:00:43]} 34. Bxe7 {[%clk 0:00:10]}  Kxe7 {[%clk 0:00:44]} 35. Rb6 {[%clk 0:00:10]}  Kd7 {[%clk 0:00:43]} 36. h3 {[%clk 0:00:08]}  e5 {[%clk 0:00:40]} 37. Rb5 {[%clk 0:00:08]}  Kd6 {[%clk 0:00:39]} 38. Kf3 {[%clk 0:00:06]}  Ra3+ {[%clk 0:00:35]} 39. Kg2 {[%clk 0:00:06]}  Ra7 {[%clk 0:00:31]} 40. g5 {[%clk 0:00:05]}  Kc6 {[%clk 0:00:30]} 41. Rxe5 {[%clk 0:00:05]}  b5 {[%clk 0:00:30]} 42. Re6+ {[%clk 0:00:05]}  Kc5 {[%clk 0:00:29]} 43. Re5+ {[%clk 0:00:06]}  Kc4 {[%clk 0:00:29]} 44. Re4+ {[%clk 0:00:06]}  Kd5 {[%clk 0:00:29]} 45. Rh4 {[%clk 0:00:06]}  Rb7 {[%clk 0:00:28]} 46. Rb4 {[%clk 0:00:05]}  Kc5 {[%clk 0:00:28]} 47. Rb1 {[%clk 0:00:06]}  b4 {[%clk 0:00:28]} 48. Kf3 {[%clk 0:00:06]}  Kc4 {[%clk 0:00:27]} 49. Ke3 {[%clk 0:00:05]}  Kc3 {[%clk 0:00:27]} 50. Rc1+ {[%clk 0:00:03]}  Kb2 {[%clk 0:00:27]} 51. Rc6 {[%clk 0:00:02]}  b3 {[%clk 0:00:27]} 52. f4 {[%clk 0:00:03]}  Rd7 {[%clk 0:00:25]} 53. Rb6 {[%clk 0:00:02]}  Kc2 {[%clk 0:00:25]} 54. Ke4 {[%clk 0:00:02]}  b2 {[%clk 0:00:25]} 55. f5 {[%clk 0:00:02]}  gxf5+ {[%clk 0:00:15]} 56. Kxf5 {[%clk 0:00:03]}  b1=Q {[%clk 0:00:15]} 57. Rxb1 {[%clk 0:00:03]}  Kxb1 {[%clk 0:00:15]} 58. h4 {[%clk 0:00:04]}  Kc2 {[%clk 0:00:14]} 59. h5 {[%clk 0:00:04]}  Rd5+ {[%clk 0:00:12]} 60. Kf6 {[%clk 0:00:04]}  Kd3 {[%clk 0:00:12]} 61. g6 {[%clk 0:00:03]}  h6 {[%clk 0:00:11]} 62. Kg7 {[%clk 0:00:02]}  Rxh5 {[%clk 0:00:11]} 63. Kh7 {[%clk 0:00:01]}  Ke4 {[%clk 0:00:08]} 64. g7 {[%clk 0:00:01]}  Rg5 {[%clk 0:00:08]} 65. Kxh6 {[%clk 0:00:02]}  Kf5 {[%clk 0:00:08]} 66. Kh7 {[%clk 0:00:02]}  Rh5+ {[%clk 0:00:08]} 67. Kg8 {[%clk 0:00:02]}  Kg6 {[%clk 0:00:08]} 68. Kf8 {[%clk 0:00:02]}  Rf5+ {[%clk 0:00:08]} 69. Kg8 {[%clk 0:00:03]}  Ra5 {[%clk 0:00:07]} 70. Kh8 {[%clk 0:00:03]}  Rh5+ {[%clk 0:00:07]} 71. Kg8 {[%clk 0:00:03]}  Rh7 {[%clk 0:00:07]} 0-1


[Site "https://www.chess.com"]

[Event "Titled Tuesday Blitz November 29 Late 2022"]
[White "Gonzalez, Francisco Silva"]
[Black "Preotu, Razvan"]
[WhiteFideId "1512285"]
[BlackFideId "2613280"]
[WhiteElo "2159"]
[BlackElo "2407"]
[Result "0-1"]
[Round "10"]
[TimeControl "180+1"]
[Date "2022.11.30"]
[WhiteClock "0:00:34"]
[BlackClock "0:00:19"]

1. d4 {[%clk 0:03:00]}  Nf6 {[%clk 0:02:53]} 2. c4 {[%clk 0:03:00]}  g6 {[%clk 0:02:53]} 3. Nc3 {[%clk 0:03:01]}  d5 {[%clk 0:02:53]} 4. Bf4 {[%clk 0:03:00]}  Bg7 {[%clk 0:02:52]} 5. Nf3 {[%clk 0:03:00]}  O-O {[%clk 0:02:52]} 6. e3 {[%clk 0:03:00]}  c5 {[%clk 0:02:51]} 7. dxc5 {[%clk 0:03:00]}  Ne4 {[%clk 0:02:30]} 8. Rc1 {[%clk 0:03:01]}  Nd7 {[%clk 0:02:12]} 9. cxd5 {[%clk 0:02:59]}  Nxc3 {[%clk 0:02:10]} 10. bxc3 {[%clk 0:02:58]}  Qa5 {[%clk 0:02:10]} 11. Nd4 {[%clk 0:02:58]}  Qxa2 {[%clk 0:02:08]} 12. c6 {[%clk 0:02:55]}  Nc5 {[%clk 0:02:04]} 13. c4 {[%clk 0:02:38]}  Qa5+ {[%clk 0:01:42]} 14. Ke2 {[%clk 0:02:28]}  e5 {[%clk 0:01:40]} 15. dxe6 {[%clk 0:02:27]}  Nxe6 {[%clk 0:01:36]} 16. Nxe6 {[%clk 0:02:23]}  fxe6 {[%clk 0:01:33]} 17. Qd6 {[%clk 0:02:00]}  e5 {[%clk 0:00:42]} 18. Bg5 {[%clk 0:01:54]}  Qa2+ {[%clk 0:00:32]} 19. Kd1 {[%clk 0:01:54]}  Qb3+ {[%clk 0:00:23]} 20. Ke2 {[%clk 0:01:44]}  Qb2+ {[%clk 0:00:23]} 21. Kd1 {[%clk 0:01:44]}  Bg4+ {[%clk 0:00:21]} 22. f3 {[%clk 0:01:33]}  Rxf3 {[%clk 0:00:21]} 23. Rc2 {[%clk 0:00:51]}  Rxf1+ {[%clk 0:00:20]} 24. Kd2 {[%clk 0:00:51]}  Rf2+ {[%clk 0:00:20]} 25. Ke1 {[%clk 0:00:52]}  Qxc2 {[%clk 0:00:20]} 26. Qd5+ {[%clk 0:00:38]}  Kh8 {[%clk 0:00:20]} 27. Qd3 {[%clk 0:00:36]}  Re2+ {[%clk 0:00:18]} 28. Kf1 {[%clk 0:00:34]}  Qc1+ {[%clk 0:00:18]} 29. Qd1 {[%clk 0:00:34]}  Qxd1# {[%clk 0:00:19]} 0-1


[Site "https://www.chess.com"]